lending/lending_fUSD_20250122
["ID","MTS","AMOUNT","RATE_DAILY","PERIOD"]
[349985195,1737549054968,-1124.32,0.00021796,2]
[349985196,1737549054977,-2693.46,0.00021796,2]
[349985197,1737549054986,-500.0,0.00021796,2]
[349985198,1737549054995,-5144.43,0.00021796,2]
[349985199,1737549055005,-727.29,0.00021796,2]
[349985200,1737549055015,-612.69,0.00021796,2]
[349985201,1737549055024,-1727.17,0.00021796,2]
[349985202,1737549055033,-500.0,0.00021796,2]
[349985203,1737549055042,-716.33,0.00021796,2]
[349985204,1737549055052,-1059.07,0.00021796,2]
[349985205,1737549055061,-1114.06,0.00021796,2]
[349985206,1737549055073,-500.0,0.00021796,2]
[349985207,1737549055082,-500.0,0.00021796,2]
[349985208,1737549055091,-1000.0,0.00021796,2]
[349985209,1737549055101,-634.21,0.00021796,2]
[349985210,1737549055111,-500.0,0.00021796,2]
[349985211,1737549055121,-1624.3,0.00021796,2]
[349985212,1737549055130,-500.0,0.00021797,2]
[349985213,1737549055139,-150.0,0.00021798,2]
[349985214,1737549055149,-1037.10875048,0.00021799,5]
[349985215,1737549055158,-500.0,0.00021799,2]
[349985216,1737549055167,-370.83281131,0.00021799,2]
[349985217,1737549055177,-24923.174047,0.000218,2]
[349985218,1737549055186,-24923.174047,0.000218,2]
[349985219,1737549055195,-24923.174044,0.000218,2]
[349985220,1737549055204,-24923.174044,0.000218,2]
[349985221,1737549055213,-24923.174044,0.000218,2]
[349985222,1737549055222,-24923.174044,0.000218,2]
[349985223,1737549055231,-24923.174044,0.000218,2]
[349985224,1737549055241,-24923.174044,0.000218,2]
[349985225,1737549055250,-23450.295296,0.000218,2]
[349985226,1737549055259,-23450.295296,0.000218,2]
[349985227,1737549055268,-23450.295296,0.000218,2]
[349985228,1737549055277,-23450.295296,0.000218,2]
[349985229,1737549055288,-23450.295296,0.000218,2]
[349985230,1737549055297,-23450.295296,0.000218,2]
[349985231,1737549055306,-23450.295296,0.000218,2]
[349985232,1737549055317,-1926.69,0.000218,2]
[349985233,1737549055327,-277.91,0.00021802,2]
[349985234,1737549055336,-150.0,0.00021812,2]
[349985235,1737549055345,-150.0,0.00021816,2]
[349985236,1737549055354,-150.0,0.00021817,2]
[349985237,1737549055363,-150.0,0.00021821,2]
[349985238,1737549055373,-500.0,0.00021822,2]
[349985239,1737549055382,-186.0,0.00021836,2]
[349985240,1737549055391,-187.76,0.00021836,2]
[349985241,1737549055400,-150.0,0.00021841,2]
[349985242,1737549055409,-150.0,0.00021841,2]
[349985243,1737549055423,-150.0,0.00021849,2]
[349985244,1737549055440,-3636.9,0.0002185,6]
[349985245,1737549055453,-1655.35279773,0.00021857,4]
[349985246,1737549055467,-150.0,0.00021869,2]
[349985247,1737549055482,-63592.45637947,0.0002187,2]
[349985248,1737549055496,-150.0,0.00021873,2]
[349985249,1737549055511,-150.0,0.00021878,2]
[349985250,1737549055524,-3580.0,0.0002188,5]
[349985251,1737549055536,-500.0,0.0002188,2]
[349985252,1737549055551,-1000.0,0.0002189,2]
[349985253,1737549055565,-1000.0,0.0002189,2]
[349985254,1737549055580,-1000.0,0.0002189,2]
[349985255,1737549055595,-1000.0,0.0002189,2]
[349985256,1737549055610,-1000.0,0.0002189,2]
[349985257,1737549055627,-1000.0,0.0002189,2]
[349985258,1737549055641,-1000.0,0.0002189,2]
[349985259,1737549055655,-1000.0,0.0002189,2]
[349985260,1737549055669,-1000.0,0.0002189,2]
[349985261,1737549055684,-1000.0,0.0002189,2]
[349985262,1737549055697,-1007.0823,0.0002189,2]
[349985263,1737549055711,-169.32,0.00021895,2]
[349985264,1737549055721,-500.0,0.00021897,2]
[349985265,1737549055734,-516.62,0.00021897,2]
[349985266,1737549055751,-500.0,0.00021897,2]
[349985267,1737549055761,-500.0,0.00021897,2]
[349985268,1737549055772,-500.0,0.00021897,2]
[349985269,1737549055786,-530.02,0.00021897,2]
[349985270,1737549055800,-622.68,0.00021897,2]
[349985271,1737549055812,-465.621511,0.00021897,2]
[349985272,1737549055824,-500.0,0.00021897,2]
[349985273,1737549055837,-500.0,0.00021897,2]
[349985274,1737549055850,-661.91,0.00021897,2]
[349985275,1737549055863,-759.510306,0.00021897,2]
[349985276,1737549055876,-777.07,0.00021897,2]
[349985277,1737549055888,-500.0,0.00021897,2]
[349985278,1737549055900,-500.0,0.00021897,2]
[349985279,1737549055913,-500.0,0.00021897,2]
[349985280,1737549055925,-500.0,0.00021897,2]
[349985281,1737549055938,-682.69,0.00021897,2]
[349985282,1737549055950,-715.54,0.00021897,2]
[349985283,1737549055964,-569.24,0.00021897,2]
[349985284,1737549055977,-500.0,0.00021897,2]
[349985285,1737549055990,-500.0,0.00021897,2]
[349985286,1737549056002,-500.0,0.00021897,2]
[349985287,1737549056015,-500.0,0.00021897,2]
[349985288,1737549056028,-500.0,0.00021897,2]
[349985289,1737549056041,-500.0,0.00021897,2]
[349985290,1737549056053,-500.0,0.00021897,2]
[349985291,1737549056066,-500.0,0.00021897,2]
[349985292,1737549056080,-500.0,0.00021897,2]
[349985293,1737549056092,-500.0,0.00021897,2]
[349985294,1737549056104,-500.0,0.00021897,2]
[349985295,1737549056117,-500.0,0.00021897,2]
[349985296,1737549056130,-500.0,0.00021897,2]
[349985297,1737549056143,-580.08,0.00021897,2]
[349985298,1737549056155,-1034.13,0.00021897,2]
[349985299,1737549056167,-1918.8,0.00021897,2]
[349985300,1737549056180,-1510.81,0.00021897,2]
[349985301,1737549056192,-1016.66,0.00021897,2]
[349985302,1737549056204,-971.81,0.00021897,2]
[349985303,1737549056216,-963.7,0.00021897,2]
[349985304,1737549056229,-500.0,0.00021897,2]
[349985305,1737549056242,-1351.87,0.00021897,2]
[349985306,1737549056255,-500.0,0.00021897,2]
[349985307,1737549056267,-519.8,0.00021897,2]
[349985308,1737549056280,-726.58,0.00021897,2]
[349985309,1737549056292,-756.68,0.00021897,2]
[349985310,1737549056305,-1361.76,0.00021897,2]
[349985311,1737549056318,-1110.66,0.00021897,2]
[349985312,1737549056331,-652.9,0.00021897,2]
[349985313,1737549056345,-769.05,0.00021897,2]
[349985314,1737549056357,-555.35,0.00021897,2]
[349985315,1737549056369,-1066.49,0.00021897,2]
[349985316,1737549056382,-795.04,0.00021897,2]
[349985317,1737549056394,-2707.27,0.00021897,2]
[349985318,1737549056426,-500.0,0.00021897,2]
[349985319,1737549056439,-1689.92,0.00021897,2]
[349985320,1737549056449,-1448.38,0.00021897,2]
[349985321,1737549056459,-889.69,0.00021897,2]
[349985322,1737549056468,-500.0,0.00021897,2]
[349985323,1737549056477,-682.43,0.00021897,2]
[349985324,1737549056487,-977.14,0.00021897,2]
[349985325,1737549056496,-500.0,0.00021897,2]
[349985326,1737549056506,-775.54,0.00021897,2]
[349985327,1737549056515,-574.34,0.00021897,2]
[349985328,1737549056524,-1681.08,0.00021897,2]
[349985329,1737549056534,-550.22,0.00021897,2]
[349985330,1737549056544,-1003.72,0.00021897,2]
[349985331,1737549056553,-1831.25,0.00021897,2]
[349985332,1737549056563,-1016.3,0.00021897,2]
[349985333,1737549056573,-1242.63,0.00021897,2]
[349985334,1737549056583,-637.13,0.00021897,2]
[349985335,1737549056592,-895.54,0.00021897,2]
[349985336,1737549056602,-500.0,0.00021897,2]
[349985337,1737549056612,-500.0,0.00021897,2]
[349985338,1737549056622,-4356.71,0.00021897,2]
[349985339,1737549056632,-2686.25,0.00021897,2]
[349985340,1737549056642,-2195.16,0.00021897,2]
[349985341,1737549056652,-500.0,0.00021897,2]
[349985342,1737549056663,-919.29,0.00021897,2]
[349985343,1737549056673,-1514.78,0.00021897,2]
[349985344,1737549056683,-500.0,0.00021897,2]
[349985345,1737549056692,-2829.02,0.00021897,2]
[349985346,1737549056701,-840.97,0.00021897,2]
[349985347,1737549056711,-500.0,0.00021897,2]
[349985348,1737549056721,-500.0,0.00021897,2]
[349985349,1737549056731,-1467.47,0.00021897,2]
[349985350,1737549056742,-974.6,0.00021897,2]
[349985351,1737549056752,-1423.79,0.00021897,2]
[349985352,1737549056761,-500.0,0.00021897,2]
[349985353,1737549056771,-1034.24,0.00021897,2]
[349985354,1737549056780,-1012.59,0.00021897,2]
[349985355,1737549056789,-918.95,0.00021897,2]
[349985356,1737549056799,-500.0,0.00021897,2]
[349985357,1737549056809,-880.71,0.00021897,2]
[349985358,1737549056818,-500.0,0.00021897,2]
[349985359,1737549056828,-556.06,0.00021897,2]
[349985360,1737549056838,-3001.3,0.00021897,2]
[349985361,1737549057140,-500.0,0.00021897,2]
[349985362,1737549057157,-600.7026241,0.00021897,2]
[349985363,1737549057169,-1480.58,0.00021897,2]
[349985364,1737549057178,-581.53,0.00021897,2]
[349985365,1737549057188,-1089.01,0.00021897,2]
[349985366,1737549057197,-2620.44,0.00021897,2]
[349985367,1737549057207,-1211.77,0.00021897,2]
[349985368,1737549057219,-802.29,0.00021897,2]
[349985369,1737549057228,-500.0,0.00021897,2]
[349985370,1737549057239,-500.0,0.00021897,2]
[349985371,1737549057249,-500.0,0.00021897,2]
[349985372,1737549057258,-556.36,0.00021897,2]
[349985373,1737549057267,-500.0,0.00021897,2]
[349985374,1737549057277,-1228.47,0.00021897,2]
[349985375,1737549057287,-500.0,0.00021897,2]
[349985376,1737549057296,-716.78,0.00021897,2]
[349985377,1737549057307,-1543.85,0.00021897,2]
[349985378,1737549057316,-500.0,0.00021897,2]
[349985379,1737549057326,-500.0,0.00021897,2]
[349985380,1737549057336,-919.14,0.00021897,2]
[349985381,1737549057346,-2698.41,0.00021897,2]
[349985382,1737549057354,-500.0,0.00021897,2]
[349985383,1737549057364,-981.74,0.00021897,2]
[349985384,1737549057374,-500.0,0.00021897,2]
[349985385,1737549057384,-500.0,0.00021898,2]
[349985386,1737549057393,-604.82,0.00021898,2]
[349985387,1737549057402,-500.0,0.00021898,2]
[349985388,1737549057411,-500.0,0.00021898,2]
[349985389,1737549057420,-548.89,0.00021898,2]
[349985390,1737549057429,-500.0,0.00021898,2]
[349985391,1737549057439,-500.0,0.00021898,2]
[349985392,1737549057448,-500.0,0.00021898,2]
[349985393,1737549057457,-500.0,0.00021898,2]
[349985394,1737549057467,-493.98351516,0.00021898,2]
[349985395,1737549057476,-500.0,0.00021898,2]
[349985396,1737549057485,-500.0,0.00021898,2]
[349985397,1737549057494,-552.08,0.00021898,2]
[349985398,1737549057504,-614.82,0.00021898,2]
[349985399,1737549057513,-543.85,0.00021898,2]
[349985400,1737549057522,-544.31899185,0.00021898,2]
[349985401,1737549057531,-616.84,0.00021898,2]
[349985402,1737549057541,-500.0,0.00021898,2]
[349985403,1737549057550,-500.0,0.00021898,2]
[349985404,1737549057559,-639.14,0.00021898,2]
[349985405,1737549057568,-613.53,0.00021898,2]
[349985406,1737549057578,-500.0,0.00021898,2]
[349985407,1737549057587,-500.0,0.00021898,2]
[349985408,1737549057596,-511.51,0.00021898,2]
[349985409,1737549057605,-500.0,0.00021898,2]
[349985410,1737549057614,-594.47,0.00021898,2]
[349985411,1737549057624,-337.30622835,0.00021898,2]
[349985412,1737549057634,-534.03,0.00021898,2]
[349985413,1737549057643,-690.93,0.00021898,2]
[349985414,1737549057652,-500.0,0.00021898,2]
[349985415,1737549057661,-500.0,0.00021898,2]
[349985416,1737549057670,-500.0,0.00021898,2]
[349985417,1737549057680,-749.51,0.00021898,2]
[349985418,1737549057689,-546.05,0.00021898,2]
[349985419,1737549057701,-741.19,0.00021898,2]
[349985420,1737549057711,-600.68,0.00021898,2]
[349985421,1737549057720,-549.78,0.00021898,2]
[349985422,1737549057730,-21265.733877,0.000219,2]
[349985423,1737549057739,-32394.17602767,0.000219,2]
[349985424,1737549057749,-333.39474199,0.000219,2]
[349985425,1737549057758,-159.71002208,0.000219,2]
[349985426,1737549057768,-179.43683034,0.000219,2]
[349985427,1737549057778,-160.33601459,0.000219,4]
[349985428,1737549057787,-14756.54931388,0.000219,2]
[349985429,1737549057798,-1335.98476408,0.000219,2]
[349985430,1737549057807,-739.98424114,0.000219,2]
[349985431,1737549057817,-252.75134519,0.000219,2]
[349985432,1737549057827,-213.03368819,0.000219,3]
[349985433,1737549057836,-150.0,0.00021902,2]
[349985434,1737549057846,-150.0,0.00021903,2]
[349985435,1737549057855,-500.0,0.00021917,2]
[349985436,1737549057864,-500.0,0.00021917,2]
[349985437,1737549057874,-500.0,0.00021917,2]
[349985438,1737549057883,-500.0,0.00021917,2]
[349985439,1737549057892,-500.0,0.00021917,2]
[349985440,1737549057901,-500.0,0.00021917,2]
[349985441,1737549057910,-505.31,0.00021917,2]
[349985442,1737549057919,-505.31,0.00021917,2]
[349985443,1737549057928,-505.31,0.00021917,2]
[349985444,1737549057937,-505.31,0.00021917,2]
[349985445,1737549057946,-505.31,0.00021917,2]
[349985446,1737549057955,-505.31,0.00021917,2]
[349985447,1737549057964,-4000.0,0.00021918,2]
[349985448,1737549057973,-150.0,0.00021918,2]
[349985449,1737549057982,-151.0,0.00021918,7]
[349985450,1737549057991,-151.0,0.00021918,7]
[349985451,1737549058001,-151.0,0.00021918,7]
[349985452,1737549058010,-151.0,0.00021918,7]
[349985453,1737549058020,-210.644537,0.00021918,7]
[349985454,1737549058029,-150.0,0.00021919,2]
[349985455,1737549058038,-150.0,0.00021924,2]
[349985456,1737549058048,-150.0,0.00021933,2]
[349985457,1737549058057,-151.40246118,0.00021939,2]
[349985458,1737549058067,-568.58,0.00021959,7]
[349985459,1737549058080,-568.58,0.00021959,7]
[349985460,1737549058089,-150.0,0.00021961,2]
[349985461,1737549058098,-150.0,0.00021968,2]
[349985462,1737549058107,-150.0,0.00021973,4]
[349985463,1737549058117,-150.0,0.00021973,4]
[349985464,1737549058127,-500.0,0.00021973,2]
[349985465,1737549058136,-170.12758427,0.00021973,2]
[349985466,1737549058146,-150.0,0.00021973,2]
[349985467,1737549058155,-150.0,0.00021973,2]
[349985468,1737549058164,-267.44352487,0.00021973,2]
[349985469,1737549058173,-150.0,0.00021973,2]
[349985470,1737549058182,-150.0,0.00021973,2]
[349985471,1737549058191,-150.0,0.00021973,2]
[349985472,1737549058201,-150.64207524,0.00021973,2]
[349985473,1737549058211,-150.22017629,0.00021973,2]
[349985474,1737549058221,-500.0,0.00021973,2]
[349985475,1737549058231,-500.0,0.00021973,2]
[349985476,1737549058241,-150.0,0.00021973,2]
[349985477,1737549058251,-500.0,0.00021973,2]
[349985478,1737549058260,-150.0,0.0002198,2]
[349985479,1737549058269,-17786.9525262,0.00021985,2]
[349985480,1737549058279,-150.0,0.00021985,2]
[349985481,1737549058288,-150.0,0.00021986,2]
[349985482,1737549058297,-150.0,0.0002199,2]
[349985483,1737549058306,-150.0,0.00021992,2]
[349985484,1737549058316,-9273.3637028,0.00021994,2]
[349985485,1737549058325,-1837.1865404,0.00021994,2]
[349985486,1737549058335,-175.85750751,0.00021994,2]
[349985487,1737549058344,-557.1392405,0.00021994,2]
[349985488,1737549058354,-1915.9866951,0.00021994,2]
[349985489,1737549058363,-618.7030788,0.00021994,2]
[349985490,1737549058373,-718.3449343,0.00021994,2]
[349985491,1737549058383,-4552.89210572,0.00021997,2]
[349985492,1737549058391,-33391.70442965,0.00021998,2]
[349985493,1737549058401,-500.0,0.00021999,2]
[349985494,1737549058410,-2000.0,0.00021999,2]
[349985495,1737549058420,-273234.24502978,0.00022,2]
[349985496,1737549058429,-4189.44770291,0.00022,2]
[349985497,1737549058438,-344130.07251819,0.00022,2]
[349985498,1737549058458,-541.0304438,0.00022,2]
[349985499,1737549058496,-500.0,0.00019979,2]
[349985500,1737549058506,-307.23134397,0.00020789,2]
[349985501,1737549058515,-272.932,0.00021205,2]
[349985502,1737549058524,-500.0,0.00021522,2]
[349985503,1737549058533,-1.83462323,0.00021796,2]
[349985504,1737549058821,-310.47040032,0.00019979,2]
[349985505,1737549058832,-190.55959968,0.00019979,2]
[349985506,1737549058841,-500.0,0.00019979,2]
[349985507,1737549058851,-363.52494912,0.00020151,2]
[349985508,1737549058863,-191.41404388,0.00020151,2]
[349985509,1737549058874,-500.0,0.00020253,2]
[349985510,1737549058884,-500.0,0.00020527,2]
[349985511,1737549058893,-500.0,0.00020801,2]
[349985512,1737549058903,-498.16537677,0.00021796,2]
[349985513,1737549058913,-682599.51900387,0.00022,2]
[349985514,1737549058924,-12674.517128,0.00022,2]
[349985515,1737549058937,-383.88235,0.00022,2]
[349985516,1737549059229,-176.237205,0.00019979,2]
[349985517,1737549059239,-500.0,0.00019979,2]
[349985518,1737549059249,-500.0,0.00019979,2]
[349985519,1737549059258,-446.631995,0.00020253,2]
[349985520,1737549059278,-500.0,0.00019979,2]
[349985521,1737549059288,-53.368005,0.00020253,2]
[349985522,1737549059297,-500.0,0.00020527,2]
[349985523,1737549059307,-307.23134397,0.00021011,2]
[349985524,1737549059316,-500.0,0.00021075,2]
[349985525,1737549059326,-500.0,0.00021349,2]
[349985526,1737549059335,-176.237205,0.00021349,2]
[349985527,1737549059345,-470.01,0.00021623,2]
[349985528,1737549059355,-3257.38127829,0.00022,2]
[349985529,1737549059410,-260.74,0.00022,2]
[349985530,1737549059421,-5658.10847067,0.00022,2]
[349985531,1737549059433,-4243.6,0.00022,2]
[349985532,1737549059444,-1016.60000025,0.00022,2]
[349985533,1737549059455,-829.68503096,0.00022,2]
[349985534,1737549059466,-1036.5162248,0.00022,2]
[349985535,1737549059479,-3539.4,0.00022,2]
[349985536,1737549059490,-1383.7823438,0.00022,2]
[349985537,1737549060310,500.0,0.00018548,2]
[349985538,1737549060867,500.0,0.00018548,2]
[349985539,1737549061965,1662.03576372,0.000191,10]
[349985540,1737549104959,160.46,0.00010137,2]
[349985541,1737549105192,830.4228,0.00019578,2]
[349985543,1737549149702,2500.0,0.00024,120]
[349985544,1737549255783,1945.67645524,0.00024,120]
[349985548,1737549937109,-550.0,0.00015,2]
[349985549,1737549937130,-338.17074628,0.000169,2]
[349985550,1737549937152,-600.0,0.00017,2]
[349985551,1737549937173,-135.52785568,0.00017195,2]
[349985552,1737550008091,-193.5182238,0.00017195,2]
[349985553,1737550032802,1328.0,0.00024,120]
[349985554,1737550043122,-254.51392052,0.00017195,2]
[349985555,1737550043144,-191.414044,0.00018581,2]
[349985556,1737550043165,-541.85204581,0.00018674,2]
[349985557,1737550049081,-297.34795419,0.00018674,2]
[349985558,1737550049102,-150.42,0.00018723,2]
[349985559,1737550049123,-500.0,0.00018767,2]
[349985560,1737550049144,-250.0,0.00018801,2]
[349985561,1737550049166,-150.0,0.00018822,2]
[349985562,1737550049188,-1798.55,0.0001901,2]
[349985563,1737550049211,-153.22,0.0001902,30]
[349985564,1737550049234,-250.0,0.00019058,2]
[349985565,1737550049260,-426.41,0.00019073,2]
[349985566,1737550049283,-180.94,0.0001919,2]
[349985567,1737550049304,-731.61,0.00019271,2]
[349985568,1737550049326,-170.12,0.00019374,2]
[349985569,1737550049347,-702.38139595,0.00019417,2]
[349985570,1737550049369,-1000.0,0.00019454,2]
[349985571,1737550049390,-583.56,0.00019459,2]
[349985572,1737550049414,-7075.49,0.00019477,2]
[349985573,1737550049434,-1000.0,0.00019477,2]
[349985574,1737550049456,-694.622,0.00019584,2]
[349985575,1737550049479,-5528.44785658,0.00019657,2]
[349985576,1737550150078,-183.68475271,0.00019584,2]
[349985581,1737550182510,301.1,0.00019319,2]
[349985582,1737550205305,250.0,0.00019343,2]
[349985584,1737550231529,13231.5,0.00019406,2]
[349985587,1737550232292,-204.69412799,0.00019745,2]
[349985588,1737550232302,-9857.1649,0.00019879,2]
[349985589,1737550232311,-1658.2842,0.00019879,2]
[349985590,1737550232320,-435.52,0.00019879,2]
[349985591,1737550232329,-744.03823346,0.00019879,2]
[349985592,1737550232338,-9873.9846,0.0001988,2]
[349985593,1737550232347,-1936.5859,0.0001988,2]
[349985594,1737550232356,-500.0,0.0001988,2]
[349985595,1737550232365,-410.22712991,0.00019979,2]
[349985596,1737550232375,-502.13316085,0.00019979,2]
[349985597,1737550232385,-505.42744354,0.00019979,2]
[349985598,1737550232395,-500.0,0.00019979,2]
[349985599,1737550232403,-500.0,0.00019979,2]
[349985600,1737550232412,-273.0516866,0.00019979,2]
[349985601,1737550232421,-500.0,0.00019979,2]
[349985602,1737550232431,-500.0,0.00019979,2]
[349985603,1737550232440,-291.92138929,0.00019979,2]
[349985604,1737550232449,-500.0,0.00019979,2]
[349985605,1737550232459,-500.0,0.00019979,2]
[349985606,1737550232471,-500.0,0.00019979,2]
[349985607,1737550232480,-344.23776851,0.00019979,2]
[349985608,1737550232489,-500.0,0.00019979,2]
[349985609,1737550232498,-500.0,0.00019979,2]
[349985610,1737550232509,-487.36,0.00019979,2]
[349985611,1737550232518,-500.0,0.00019979,2]
[349985612,1737550232527,-500.0,0.00019979,2]
[349985613,1737550232536,-500.0,0.00019979,2]
[349985614,1737550232547,-500.0,0.00019979,2]
[349985615,1737550232556,-500.0,0.00019979,2]
[349985616,1737550232566,-500.0,0.00019979,2]
[349985617,1737550232575,-500.0,0.00019979,2]
[349985618,1737550232584,-500.0,0.00019979,2]
[349985619,1737550232594,-500.0,0.00019979,2]
[349985620,1737550232603,-500.0,0.00019979,2]
[349985621,1737550232613,-500.0,0.00019979,2]
[349985622,1737550232622,-500.0,0.00019979,2]
[349985623,1737550232633,-500.0,0.00019979,2]
[349985624,1737550232642,-500.0,0.00019979,2]
[349985625,1737550232652,-500.0,0.00019979,2]
[349985626,1737550232661,-500.0,0.00019979,2]
[349985627,1737550232671,-500.0,0.00019979,2]
[349985628,1737550232680,-500.0,0.00019979,2]
[349985629,1737550232690,-500.0,0.00019979,2]
[349985630,1737550232699,-500.0,0.00019979,2]
[349985631,1737550232708,-500.0,0.00019979,2]
[349985632,1737550232717,-500.0,0.00019979,2]
[349985633,1737550232726,-505.77,0.00019979,2]
[349985634,1737550232736,-500.0,0.00019979,2]
[349985635,1737550232745,-330.35594887,0.00019979,2]
[349985636,1737550232754,-500.0,0.00019979,2]
[349985637,1737550232763,-500.0,0.00019979,2]
[349985638,1737550232773,-500.0,0.00019979,2]
[349985639,1737550232782,-569.32355991,0.00019979,2]
[349985640,1737550232791,-500.0,0.00019979,2]
[349985641,1737550232801,-500.0,0.00019979,2]
[349985642,1737550232810,-505.09,0.00019979,2]
[349985643,1737550232819,-500.0,0.00019979,2]
[349985645,1737550232828,-500.0,0.00019979,2]
[349985647,1737550232837,-531.66,0.00019979,2]
[349985649,1737550232847,-500.0,0.00019979,2]
[349985651,1737550232856,-500.0,0.00019979,2]
[349985653,1737550232865,-549.84,0.00019979,2]
[349985655,1737550232874,-500.0,0.00019979,2]
[349985657,1737550232885,-500.0,0.00019979,2]
[349985659,1737550232895,-500.0,0.00019979,2]
[349985661,1737550232904,-500.0,0.00019979,2]
[349985663,1737550232913,-500.0,0.00019979,2]
[349985665,1737550232923,-500.0,0.00019979,2]
[349985667,1737550232932,-500.0,0.00019979,2]
[349985669,1737550232942,-500.0,0.00019979,2]
[349985672,1737550232951,-513.3708355,0.00019979,2]
[349985675,1737550232960,-500.0,0.00019979,2]
[349985677,1737550232969,-500.0,0.00019979,2]
[349985679,1737550232979,-500.0,0.00019979,2]
[349985681,1737550232988,-500.0,0.00019979,2]
[349985683,1737550232997,-500.0,0.00019979,2]
[349985685,1737550233006,-500.0,0.00019979,2]
[349985687,1737550233016,-500.0,0.00019979,2]
[349985689,1737550233025,-504.92,0.00019979,2]
[349985691,1737550233034,-500.0,0.00019979,2]
[349985693,1737550233044,-500.0,0.00019979,2]
[349985695,1737550233054,-500.0,0.00019979,2]
[349985697,1737550233063,-500.0,0.00019979,2]
[349985699,1737550233073,-500.0,0.00019979,2]
[349985701,1737550233083,-500.0,0.00019979,2]
[349985703,1737550233092,-581.23,0.00019979,2]
[349985704,1737550233102,-500.0,0.00019979,2]
[349985706,1737550233111,-597.38,0.00019979,2]
[349985708,1737550233120,-500.0,0.00019979,2]
[349985709,1737550233130,-500.0,0.00019979,2]
[349985711,1737550233140,-500.0,0.00019979,2]
[349985712,1737550233149,-500.0,0.00019979,2]
[349985713,1737550233159,-500.0,0.00019979,2]
[349985714,1737550233168,-639.87,0.00019979,2]
[349985715,1737550233178,-500.0,0.00019979,2]
[349985716,1737550233188,-618.6,0.00019979,2]
[349985717,1737550233197,-503.43,0.00019979,2]
[349985718,1737550233207,-500.0,0.00019979,2]
[349985719,1737550233216,-500.0,0.00019979,2]
[349985720,1737550233226,-500.0,0.00019979,2]
[349985721,1737550233235,-500.0,0.00019979,2]
[349985722,1737550233244,-500.0,0.00019979,2]
[349985723,1737550233254,-160.0,0.0002,30]
[349985724,1737550233263,-220.0,0.00020053,2]
[349985725,1737550233273,-410.70852985,0.0002015,2]
[349985726,1737550233283,-2500.0,0.0002015,2]
[349985727,1737550233292,-2689.7846,0.00020153,2]
[349985728,1737550233301,-434.53,0.00020162,2]
[349985729,1737550233311,-572.34,0.00020163,2]
[349985730,1737550233320,-254.37,0.0002017,2]
[349985731,1737550233329,-500.0,0.0002018,2]
[349985732,1737550233339,-635.52293997,0.0002018,2]
[349985733,1737550233348,-500.0,0.0002025,2]
[349985734,1737550233357,-500.0,0.0002025,2]
[349985735,1737550233367,-264.65275406,0.0002025,2]
[349985736,1737550233376,-500.0,0.0002025,2]
[349985737,1737550233387,-500.0,0.0002025,2]
[349985738,1737550233396,-500.0,0.0002025,2]
[349985739,1737550233405,-500.0,0.0002025,2]